[Event "EOC-ch Playoff-C 2021"]
[Site "Online"]
[Date "2021.03.29"]
[Round "1.7"]
[White "Jones, Gawain C B"]
[Black "Kazakouski, Valery"]
[Result "1/2-1/2"]
[ECO "B43"]
[WhiteElo "2670"]
[BlackElo "2476"]
[Annotator "RC"]
[PlyCount "92"]
[EventDate "2021.03.29"]
[EventType "team-tourn"]
[EventCountry "NET"]
[SourceTitle "playchess.com"]
[Source "ChessBase"]
[SourceQuality "1"]
[TimeControl "900+5"]

1. e4 {[%emt 0:00:00]} c5 {[%emt 0:00:17]} 2. Nf3 {[%emt 0:00:14]} a6 {[%emt 0:00:09]} 3. g3 {[%emt 0:00:15]} b5 {[%emt 0:00:09]} 4. d4 {[%emt 0:00:29]} cxd4 {[%emt 0:00:05]} 5. Nxd4 {[%emt 0:00:01]} Bb7 {[%emt 0:00:03]} 6. Bg2 {[%emt 0:00:02]} Nf6 {[%emt 0:00:52]} 7. Nc3 {[%emt 0:00:15]} e6 {[%emt 0:00:05]} 8. O-O {[%emt 0:00:35]} b4 {[%emt 0:00:05]} 9. Na4 {[%emt 0:00:02]} Bxe4 {[%emt 0:00:04]} 10. Bxe4 {[%emt 0:00:31]} Nxe4 {[%emt 0:00:00]} 11. c4 {[%emt 0:00:02]} Nc5 {[%emt 0:01:19]} 12. a3 {[%emt 0:00:07]} bxa3 {[%emt 0:01:10]} 13. b4 {[%emt 0:00:23]} Nxa4 {[%emt 0:00:04]} 14. Qxa4 {[%emt 0:00:02]} Be7 {[%emt 0:00:03]} 15. Bxa3 {[%emt 0:01:09]} O-O {[%emt 0:01:07]} 16. b5 {[%emt 0:02:18]} Bxa3 {[%emt 0:02:39]} 17. Qxa3 {[%emt 0:00:00]} d6 {[%emt 0:00:27]} 18. Rfd1 {[%emt 0:00:55]} Qc7 {[%emt 0:01:20]} 19. Qb4 {[%emt 0:02:45]} a5 {[%emt 0:01:36]} 20. Qb3 {[%emt 0:01:38]} Nd7 {[%emt 0:00:40]} 21. Nc6 {[%emt 0:00:04]} a4 {[%emt 0:00:26]} 22. Qa3 {[%emt 0:00:50]} Nc5 {[%emt 0:00:18]} 23. Ra2 {[%emt 0:00:03]} Rfe8 {[%emt 0:01:05]} 24. Rad2 {[%emt 0:00:14]} Nb7 {[%emt 0:00:11]} 25. Qb4 {[%emt 0:00:53]} e5 {[%emt 0:00:30]} 26. Ra2 {[%emt 0:00:23]} Nc5 {[%emt 0:00:04]} 27. Rd5 {[%emt 0:00:06]} e4 {[%emt 0:00:06]} 28. Qd2 {[%emt 0:00:08]} e3 {[%emt 0:00:05]} 29. fxe3 {[%emt 0:00:02]} Ne4 {[%emt 0:00:10]} 30. Qd4 {[%emt 0:00:15]} a3 {[%emt 0:00:06]} 31. Kg2 {[%emt 0:00:03]} h6 {[%emt 0:00:36]} 32. Qa1 {[%emt 0:00:16]} Qc8 {[%emt 0:00:30]} 33. Rxa3 {[%emt 0:01:07]} Qg4 {[%emt 0:00:05]} 34. Nd4 {[%emt 0:00:04]} Rxa3 {[%emt 0:00:14]} 35. Qxa3 {[%emt 0:00:01]} Nf6 {[%emt 0:00:01]} 36. Rxd6 {[%emt 0:00:45]} Qe4+ {[%emt 0:00:02]} 37. Nf3 {[%emt 0:00:02]} Ng4 {[%emt 0:00:09]} 38. Qd3 {[%emt 0:00:13]} Nxe3+ {[%emt 0:00:07]} 39. Kf2 {[%emt 0:00:01]} Ng4+ {[%emt 0:00:07]} 40. Kg1 {[%emt 0:00:04]} Qa8 {[%emt 0:00:34]} 41. b6 {[%emt 0:00:27]} Qa1+ {[%emt 0:00:01]} 42. Qd1 {[%emt 0:00:05]} Qb2 {[%emt 0:00:09]} 43. Qd2 {[%emt 0:00:23]} Qb1+ {[%emt 0:00:14]} 44. Qd1 {[%emt 0:00:02]} Qb2 {[%emt 0:00:05]} 45. Qd2 {[%emt 0:00:05]} Qb1+ {[%emt 0:00:07]} 46. Qd1 {[%emt 0:00:02]} Qb2 {[%emt 0:00:10]} 1/2-1/2

[Event "EOC-ch Playoff-C 2021"]
[Site "Online"]
[Date "2021.03.29"]
[Round "4.8"]
[White "Murzin, Volodar"]
[Black "Shimanov, Aleksandr"]
[Result "0-1"]
[ECO "C19"]
[WhiteElo "2478"]
[BlackElo "2597"]
[Annotator "ChessBase"]
[PlyCount "168"]
[EventDate "2021.03.29"]
[EventType "team-tourn"]
[EventCountry "NET"]
[SourceTitle "playchess.com"]
[Source "ChessBase"]
[SourceQuality "1"]
[TimeControl "900+5"]

1. e4 {[%emt 0:00:00]} e6 {[%emt 0:00:10]} 2. d4 {[%emt 0:00:04]} d5 {[%emt 0:00:02]} 3. Nc3 {[%emt 0:00:01]} Bb4 {[%emt 0:00:09]} 4. e5 {[%emt 0:00:05]} c5 {[%emt 0:00:10]} 5. a3 {[%emt 0:00:02]} Bxc3+ {[%emt 0:00:02]} 6. bxc3 {[%emt 0:00:02]} Ne7 {[%emt 0:00:00]} 7. Nf3 {[%emt 0:00:03]} b6 {[%emt 0:00:14]} 8. Bb5+ {[%emt 0:00:05]} Bd7 {[%emt 0:00:02]} 9. Bd3 {[%emt 0:00:02]} c4 {[%emt 0:00:51]} 10. Be2 {[%emt 0:00:03]} Ba4 {[%emt 0:00:03]} 11. h4 {[%emt 0:00:33]} Nbc6 {[%emt 0:00:14]} 12. h5 {[%emt 0:00:12]} h6 {[%emt 0:00:02]} 13. Nh4 {[%emt 0:01:31]} Kd7 {[%emt 0:00:34]} 14. Rh3 {[%emt 0:00:44]} Qg8 {[%emt 0:00:33]} 15. g4 {[%emt 0:00:32]} g6 {[%emt 0:00:49]} 16. hxg6 {[%emt 0:00:28]} fxg6 {[%emt 0:00:07]} 17. Be3 {[%emt 0:00:16]} Rf8 {[%emt 0:02:05]} 18. Qd2 {[%emt 0:00:27]} g5 {[%emt 0:01:18]} 19. Ng2 {[%emt 0:00:10]} Ng6 {[%emt 0:00:11]} 20. f3 {[%emt 0:01:13]} Rf7 {[%emt 0:00:55]} 21. Kf2 {[%emt 0:00:19]} Qf8 {[%emt 0:00:19]} 22. Rah1 {[%emt 0:00:09]} a6 {[%emt 0:01:15]} 23. Kg3 {[%emt 0:01:45]} Na7 {[%emt 0:00:24]} 24. Ra1 {[%emt 0:02:44]} Nb5 {[%emt 0:00:19]} 25. Rh5 {[%emt 0:01:02]} Qg7 {[%emt 0:01:19]} 26. Ra2 {[%emt 0:00:42]} Qf8 {[%emt 0:00:27]} 27. Qe1 {[%emt 0:00:37]} Kc7 {[%emt 0:00:47]} 28. Bd2 {[%emt 0:00:17]} Kb7 {[%emt 0:00:31]} 29. Qc1 {[%emt 0:00:47]} Nc7 {[%emt 0:00:59]} 30. Rb2 {[%emt 0:00:18]} Ne8 {[%emt 0:01:12]} 31. Qb1 {[%emt 0:00:25]} b5 {[%emt 0:00:05]} 32. Qc1 {[%emt 0:00:07]} Ng7 {[%emt 0:00:16]} 33. Rh2 {[%emt 0:00:16]} h5 {[%emt 0:00:16]} 34. Bxg5 {[%emt 0:00:08]} hxg4 {[%emt 0:00:02]} 35. fxg4 {[%emt 0:00:13]} Rxh2 {[%emt 0:00:21]} 36. Kxh2 {[%emt 0:00:02]} Rf2 {[%emt 0:00:43]} 37. Qe3 {[%emt 0:00:05]} Rf7 {[%emt 0:00:06]} 38. Ra2 {[%emt 0:00:22]} Qh8+ {[%emt 0:00:04]} 39. Kg3 {[%emt 0:00:23]} Qh1 {[%emt 0:00:05]} 40. Qc1 {[%emt 0:00:02]} Qh7 {[%emt 0:00:03]} 41. Ra1 {[%emt 0:00:29]} Ne8 {[%emt 0:00:13]} 42. Ne3 {[%emt 0:00:27]} Qg8 {[%emt 0:00:05]} 43. Ng2 {[%emt 0:00:06]} Qf8 {[%emt 0:00:04]} 44. Qd2 {[%emt 0:00:14]} Rh7 {[%emt 0:00:03]} 45. Bf3 {[%emt 0:00:07]} Qh8 {[%emt 0:00:02]} 46. Qe3 {[%emt 0:00:03]} Rh3+ {[%emt 0:00:03]} 47. Kf2 {[%emt 0:00:01]} Bxc2 {[%emt 0:00:03]} 48. Nf4 {[%emt 0:00:04]} Rh2+ {[%emt 0:00:08]} 49. Kg1 {[%emt 0:00:03]} Nxf4 {[%emt 0:00:10]} 50. Qxf4 {[%emt 0:00:01]} Rh3 {[%emt 0:00:03]} 51. Kg2 {[%emt 0:00:12]} Rh7 {[%emt 0:00:07]} 52. Rf1 {[%emt 0:00:07]} Bd3 {[%emt 0:00:03]} 53. Re1 {[%emt 0:00:02]} Qg8 {[%emt 0:00:03]} 54. Bf6 {[%emt 0:00:05]} Qg6 {[%emt 0:00:03]} 55. Qg5 {[%emt 0:00:10]} Qf7 {[%emt 0:00:05]} 56. Kg3 {[%emt 0:00:01]} Qf8 {[%emt 0:00:09]} 57. Ra1 {[%emt 0:00:06]} Rf7 {[%emt 0:00:03]} 58. Bg2 {[%emt 0:00:09]} Nxf6 {[%emt 0:00:06]} 59. exf6 {[%emt 0:00:01]} Rxf6 {[%emt 0:00:00]} 60. Re1 {[%emt 0:00:01]} Be4 {[%emt 0:00:08]} 61. Rxe4 {[%emt 0:00:14]} dxe4 {[%emt 0:00:00]} 62. Bxe4+ {[%emt 0:00:02]} Kc7 {[%emt 0:00:01]} 63. Qe5+ {[%emt 0:00:02]} Qd6 {[%emt 0:00:03]} 64. g5 {[%emt 0:00:02]} Qxe5+ {[%emt 0:00:10]} 65. dxe5 {[%emt 0:00:06]} Rf8 {[%emt 0:00:01]} 66. g6 {[%emt 0:00:02]} Kd7 {[%emt 0:00:03]} 67. Kg4 {[%emt 0:00:05]} Rf1 {[%emt 0:00:07]} 68. Kg5 {[%emt 0:00:02]} Ke7 {[%emt 0:00:01]} 69. Kh6 {[%emt 0:00:07]} Rg1 {[%emt 0:00:07]} 70. Bb7 {[%emt 0:00:14]} a5 {[%emt 0:00:03]} 71. Bc6 {[%emt 0:00:04]} b4 {[%emt 0:00:02]} 72. axb4 {[%emt 0:00:01]} axb4 {[%emt 0:00:01]} 73. cxb4 {[%emt 0:00:02]} c3 {[%emt 0:00:01]} 74. Be4 {[%emt 0:00:01]} Rg4 {[%emt 0:00:06]} 75. Bc2 {[%emt 0:00:06]} Rg2 {[%emt 0:00:03]} 76. Be4 {[%emt 0:00:18]} c2 {[%emt 0:00:09]} 77. Bxc2 {[%emt 0:00:03]} Rxc2 {[%emt 0:00:01]} 78. Kh7 {[%emt 0:00:05]} Rh2+ {[%emt 0:00:06]} 79. Kg8 {[%emt 0:00:01]} Rb2 {[%emt 0:00:13]} 80. g7 {[%emt 0:00:07]} Rxb4 {[%emt 0:00:11]} 81. Kh7 {[%emt 0:00:04]} Rh4+ {[%emt 0:00:02]} 82. Kg8 {[%emt 0:00:03]} Rg4 {[%emt 0:00:17]} 83. Kh7 {[%emt 0:00:03]} Kf7 {[%emt 0:00:04]} 84. Kh8 {[%emt 0:00:03]} Rh4# {[%emt 0:00:02]} 0-1

[Event "EOC-ch Playoff-C 2021"]
[Site "Online"]
[Date "2021.03.29"]
[Round "5.12"]
[White "Shimanov, Aleksandr"]
[Black "Kazakouski, Valery"]
[Result "1-0"]
[ECO "B23"]
[WhiteElo "2597"]
[BlackElo "2476"]
[Annotator "ChessBase"]
[PlyCount "91"]
[EventDate "2021.03.29"]
[EventType "team-tourn"]
[EventCountry "NET"]
[SourceTitle "playchess.com"]
[Source "ChessBase"]
[SourceQuality "1"]
[TimeControl "900+5"]

1. e4 {[%emt 0:00:00]} c5 {[%emt 0:00:02]} 2. Nc3 {[%emt 0:00:05]} a6 {[%emt 0:00:06]} 3. d4 {[%emt 0:00:06]} cxd4 {[%emt 0:00:04]} 4. Qxd4 {[%emt 0:00:01]} Nc6 {[%emt 0:00:02]} 5. Qe3 {[%emt 0:00:02]} g6 {[%emt 0:00:12]} 6. Bd2 {[%emt 0:00:03]} Bg7 {[%emt 0:00:03]} 7. O-O-O {[%emt 0:00:03]} d6 {[%emt 0:00:08]} 8. Nd5 {[%emt 0:00:03]} Nf6 {[%emt 0:01:31]} 9. Bc3 {[%emt 0:00:03]} Ng4 {[%emt 0:03:02]} 10. Qd2 {[%emt 0:01:09]} Bxc3 {[%emt 0:00:04]} 11. Qxc3 {[%emt 0:00:03]} e5 {[%emt 0:00:39]} 12. Qg3 {[%emt 0:02:27]} Nf6 {[%emt 0:02:19]} 13. Nxf6+ {[%emt 0:00:14]} Qxf6 {[%emt 0:00:00]} 14. Bc4 {[%emt 0:00:05]} Be6 {[%emt 0:00:03]} 15. Bxe6 {[%emt 0:02:50]} Qxe6 {[%emt 0:00:00]} 16. Kb1 {[%emt 0:00:01]} Rd8 {[%emt 0:01:24]} 17. Ne2 {[%emt 0:02:06]} d5 {[%emt 0:00:31]} 18. Qb3 {[%emt 0:00:34]} d4 {[%emt 0:00:35]} 19. Qxe6+ {[%emt 0:00:54]} fxe6 {[%emt 0:00:00]} 20. Nc1 {[%emt 0:00:01]} Nb8 {[%emt 0:00:54]} 21. Nd3 {[%emt 0:00:42]} Nd7 {[%emt 0:00:02]} 22. h4 {[%emt 0:00:37]} Ke7 {[%emt 0:00:19]} 23. f3 {[%emt 0:00:04]} Rc8 {[%emt 0:00:14]} 24. Rh3 {[%emt 0:00:37]} Rhg8 {[%emt 0:00:09]} 25. Rg3 {[%emt 0:00:06]} Rcf8 {[%emt 0:00:26]} 26. Rc1 {[%emt 0:00:21]} Rc8 {[%emt 0:00:04]} 27. Rh1 {[%emt 0:00:24]} Rcf8 {[%emt 0:00:10]} 28. Kc1 {[%emt 0:00:05]} Rc8 {[%emt 0:00:07]} 29. Kd2 {[%emt 0:00:03]} Rcf8 {[%emt 0:00:03]} 30. c3 {[%emt 0:00:36]} dxc3+ {[%emt 0:00:03]} 31. Kxc3 {[%emt 0:00:03]} Rc8+ {[%emt 0:00:02]} 32. Kd2 {[%emt 0:00:11]} Rgd8 {[%emt 0:00:55]} 33. Ke3 {[%emt 0:00:26]} Nf6 {[%emt 0:00:44]} 34. Rg5 {[%emt 0:00:04]} Rc2 {[%emt 0:01:13]} 35. Rxe5 {[%emt 0:00:03]} Nh5 {[%emt 0:00:15]} 36. g4 {[%emt 0:00:42]} Ng3 {[%emt 0:00:03]} 37. Re1 {[%emt 0:00:18]} Kf6 {[%emt 0:00:42]} 38. Ra5 {[%emt 0:00:18]} Rh2 {[%emt 0:00:13]} 39. Rc5 {[%emt 0:00:42]} Rd7 {[%emt 0:00:14]} 40. Ne5 {[%emt 0:00:26]} Rdd2 {[%emt 0:00:15]} 41. g5+ {[%emt 0:00:02]} Ke7 {[%emt 0:00:15]} 42. Rc7+ {[%emt 0:00:02]} Ke8 {[%emt 0:00:01]} 43. Rxh7 {[%emt 0:00:13]} Rxb2 {[%emt 0:00:15]} 44. Nxg6 {[%emt 0:00:11]} Rxa2 {[%emt 0:00:03]} 45. Rd1 {[%emt 0:00:10]} Rhe2+ {[%emt 0:00:14]} 46. Kf4 {[%emt 0:00:02]} 1-0